fUSD/lending_fUSD_20251103
["ID","MTS","AMOUNT","RATE_DAILY","PERIOD"]
[392957733,1762177669998,-99.61849925,0.00014113,2]
[392957734,1762177672648,-193.0,0.00014113,2]
[392957735,1762177674301,-224.39491914,0.00014113,2]
[392957736,1762177675978,-172.27415638,0.00014113,2]
[392957737,1762177677574,-181.827646,0.00014113,2]
[392957738,1762177679145,-328.88477923,0.00014113,2]
[392957739,1762177679172,-271.13286438,0.00014114,2]
[392957740,1762177690652,9240.52130803,0.00014014,2]
[392957741,1762177691282,-300.0,0.00014113,2]
[392957742,1762177691307,-200.19530443,0.00014113,2]
[392957743,1762177692810,-99.80469557,0.00014113,2]
[392957744,1762177692832,-76.6923245,0.00014113,2]
[392957745,1762177707781,-73.3076755,0.00014113,2]
[392957746,1762177707805,-283.56429401,0.00014114,2]
[392957747,1762177709198,-190.33801776,0.00014114,2]
[392957748,1762177725487,-206.89387929,0.00014043,2]
[392957749,1762177729152,-182.30181709,0.00014043,2]
[392957750,1762177730994,-158.01429162,0.00014043,2]
[392957751,1762177731024,-2.18104172,0.00014114,2]
[392957752,1762177734270,-212.93952365,0.00014114,2]
[392957753,1762177736475,-560.56813996,0.00014114,2]
[392957754,1762177739618,-165.60028277,0.00014114,2]
[392957755,1762177756247,-300.0,0.00014113,2]
[392957756,1762177756272,-8.54670815,0.00014114,2]
[392957757,1762177757846,-173.61263391,0.00014114,2]
[392957758,1762177759980,-424.17736145,0.00014114,2]
[392957759,1762177763690,-234.05785134,0.00014114,2]
[392957760,1762177766545,-179.01642726,0.00014114,2]
[392957761,1762177769804,-198.6057214,0.00014114,2]
[392957762,1762177774115,-331.418428,0.00014114,2]
[392957763,1762177791976,181.51197132,0.00014014,2]
[392957764,1762177792612,-167.113211,0.00014114,2]
[392957765,1762177794250,-416.4052325,0.00014114,2]
[392957766,1762177796832,-319.09092697,0.00014043,2]
[392957767,1762177799392,-276.60639327,0.00014043,2]
[392957768,1762177809784,2334.22,0.00014,2]
[392957769,1762177810560,-163.0742786,0.00014043,2]
[392957770,1762177812108,2334.22,0.00014,2]
[392957771,1762177814179,2334.22,0.00014,2]
[392957772,1762177814879,-153.38545031,0.00014043,2]
[392957773,1762177816274,2334.22,0.00014,2]
[392957774,1762177819597,-166.66,0.00014043,2]
[392957777,1762177831496,-1.56494485,0.00014043,2]
[392957778,1762177831509,-1645.872113,0.00014043,2]
[392957779,1762177831518,-195.0,0.00014075,2]
[392957780,1762177831533,-405.70276415,0.00014106,2]
[392957781,1762177831543,-300.0,0.00014113,2]
[392957782,1762177831553,-250.22992293,0.00014113,2]
[392957783,1762177831565,-949.77007707,0.00014113,2]
[392957784,1762177831575,-618.88676877,0.00014114,2]
[392957785,1762177831586,-673.38616737,0.00014114,2]
[392957786,1762177831597,-3861.51514014,0.00014114,2]
[392957795,1762177831840,-1772.42454846,0.00014114,2]
[392957797,1762177831852,-443.8799998,0.00014114,2]
[392957838,1762177837409,-10266.7513893,0.00014114,2]
[392957839,1762177837522,-42033.83070109,0.00014114,2]
[392957840,1762177837580,-563.17816,0.00014114,2]
[392957841,1762177837592,-496.7949,0.00014114,2]
[392957843,1762177839515,-4472.9798341,0.00014114,2]
[392957845,1762177841541,-1.6e-07,0.00014114,2]
[392957846,1762177841692,-2197.8468704,0.00014114,2]
[392957847,1762177841704,-70668.74419651,0.00014114,2]
[392957848,1762177841716,-284.2851,0.00014114,2]
[392957849,1762177841725,-242.6841,0.00014114,2]
[392957850,1762177841734,-13572.9012017,0.00014126,2]
[392957851,1762177841743,-500.0,0.00014206,2]
[392957852,1762177841752,-327.0830179,0.00014219,2]
[392957853,1762177841761,-280.84,0.00014306,2]
[392957854,1762177841770,-1000.0,0.000145,2]
[392957855,1762177841780,-1320.64,0.000145,2]
[392957856,1762177841789,-360.76450346,0.000145,2]
[392957863,1762177842279,-540.35,0.000145,2]
[392957873,1762177842611,-152.97262088,0.00014113,2]
[392957874,1762177842624,-482.71881262,0.00014113,2]
[392957875,1762177842636,-17.28118738,0.00014113,2]
[392957876,1762177842645,-500.0,0.00014113,2]
[392957877,1762177842655,-469.56022436,0.00014113,2]
[392957878,1762177842744,-30.43977564,0.00014113,2]
[392957879,1762177842754,-382.27142399,0.00014113,2]
[392957890,1762177845497,-117.72857601,0.00014113,2]
[392957891,1762177845526,-182.27142399,0.00014113,2]
[392957893,1762177849303,-231.55302654,0.00014113,2]
[392957894,1762177850827,-229.69925502,0.00014113,2]
[392957895,1762177850854,-315.41876969,0.00014113,2]
[392957896,1762177860465,-184.58123031,0.00014113,2]
[392957897,1762177860493,-67.45840064,0.00014113,2]
[392957898,1762177864326,-432.54159936,0.00014113,2]
[392957899,1762177864352,-63.9992809,0.00014113,2]
[392957900,1762177867523,-436.0007191,0.00014113,2]
[392957901,1762177867550,-202.58871613,0.00014113,2]
[392957902,1762177869032,-159.66198224,0.00014113,2]
[392957903,1762177872458,-167.113211,0.00014042,2]
[392957904,1762177872488,-9.38380907,0.00014113,2]
[392957905,1762177874070,-128.36549256,0.00014113,2]
[392957906,1762177874096,-34.48566844,0.00014113,2]
[392957907,1762177890453,-161.82506,0.00014113,2]
[392957908,1762177891982,-239.84119403,0.00014113,2]
[392957909,1762177894144,-63.84807753,0.00014113,2]
[392957910,1762177894170,-248.89652851,0.00014113,2]
[392957911,1762177895659,-251.10347149,0.00014113,2]
[392957912,1762177895684,-79.94140335,0.00014113,2]
[392957913,1762177895941,817.10854444,0.00027397,120]
[392957914,1762177900674,-207.42033652,0.00014113,2]
[392957915,1762177902841,-182.15802631,0.00014113,2]
[392957916,1762177920517,-30.48023382,0.00014113,2]
[392957917,1762177920545,-378.23255172,0.00014113,2]
[392957918,1762177922626,-121.76744828,0.00014113,2]
[392957919,1762177922655,-178.23255172,0.00014113,2]
[392957920,1762177925661,500.0,0.0003679,30]
[392957921,1762177926090,-164.61317085,0.00014113,2]
[392957922,1762177926118,-3.38682915,0.00014113,2]
[392957923,1762177926291,500.0,0.0003679,30]
[392957924,1762177927605,-195.0,0.00014113,2]
[392957925,1762177928662,200.0,0.0003679,30]
[392957926,1762177929174,-301.61317085,0.00014113,2]
[392957927,1762177929201,-56.2147247,0.00014113,2]
[392957928,1762177929349,151.0,0.0003679,30]
[392957929,1762177929946,151.0,0.0003679,30]
[392957930,1762177930638,151.0,0.0003679,30]
[392957931,1762177931264,151.0,0.0003679,30]
[392957932,1762177931866,500.0,0.0003679,30]
[392957933,1762177932305,151.0,0.0003679,30]
[392957934,1762177932486,500.0,0.0003679,30]
[392957935,1762177933214,-220.38134753,0.00014113,2]
[392957936,1762177933317,500.0,0.0003679,30]
[392957937,1762177933729,500.0,0.0003679,30]
[392957938,1762177934566,-223.40392777,0.00014113,2]
[392957939,1762177934592,-76.59607223,0.00014113,2]
[392957940,1762177935942,200.0,0.0003679,30]
[392957941,1762177940769,-193.04963692,0.00014113,2]
[392957942,1762177944563,-161.54081874,0.00014113,2]
[392957943,1762177948318,-151.89692149,0.00014042,2]
[392957944,1762177971334,481.61802868,0.00014014,2]
[392957945,1762177971361,18.38197132,0.00014014,2]
[392957948,1762178100474,-195.0,0.0001411,2]
[392957949,1762178227114,500.0,0.0003679,30]
[392957950,1762178235548,-172.7793,0.00014039,2]
[392957951,1762178235571,-194.93674901,0.00014075,2]
[392957952,1762178295534,-105.06325099,0.00014075,2]
[392957953,1762178295556,-107.19726176,0.00014092,2]
[392957954,1762178297066,-162.85116113,0.00014092,2]
[392957955,1762178299740,-80.43974302,0.00014092,2]
[392957956,1762178299761,-150.58750499,0.00014092,2]
[392957957,1762178303726,-230.40058126,0.00014092,2]
[392957958,1762178305871,-159.32460015,0.00014092,2]
[392957959,1762178308569,-229.0510768,0.00014092,2]
[392957960,1762178310188,-163.44697346,0.00014092,2]
[392957961,1762178312930,-195.0,0.00014092,2]
[392957962,1762178315243,-183.67345594,0.00014092,2]
[392957963,1762178319743,4256.1,0.00013971,2]
[392957964,1762178355474,-26.9610452,0.00014092,2]
[392957965,1762178355496,-250.0,0.00014101,2]
[392957966,1762178355519,-115.42968382,0.00014101,2]
[392957968,1762178415460,-79.57031618,0.00014101,2]
[392957969,1762178415483,-94.66030447,0.00014101,2]
[392957970,1762178417606,-239.84119403,0.00014101,2]
[392957972,1762178525267,249.6373577,0.000368,30]
[392957973,1762178587934,690.4261253,0.00014008,2]
[392957974,1762178684755,500.0,0.00013579,2]
[392957975,1762178760550,-44.58232131,0.00014101,2]
[392957976,1762178760571,-245.32557186,0.00014103,2]
[392957977,1762178762721,213.8,0.00013626,2]
[392957978,1762178770790,2151.52,0.00013699,2]
[392957980,1762178800119,12134.68,0.00013675,2]
[392957981,1762178800142,5000.0,0.00013675,2]
[392957982,1762178801946,-228.23215952,0.00013675,2]
[392957983,1762178805321,-430.20618159,0.00013675,2]
[392957984,1762178808539,-298.80797233,0.00013675,2]
[392957985,1762178812057,-300.77396753,0.00013675,2]
[392957986,1762178814289,-411.97479195,0.00013675,2]
[392957987,1762178820147,-195.0,0.00013675,2]
[392957988,1762178822298,-180.27972521,0.00013675,2]
[392957989,1762178823748,-193.3250575,0.00013675,2]
[392957990,1762178825805,-319.40133199,0.00013675,2]
[392957993,1762178828522,-300.0,0.00013675,2]
[392957994,1762178830152,517.28,6.928e-05,2]
[392957995,1762178830183,-247.09124972,0.00013675,2]
[392957996,1762178830373,517.28,7.278e-05,2]
[392957997,1762178830591,517.28,7.628e-05,2]
[392957998,1762178830795,517.28,7.979e-05,2]
[392957999,1762178831040,517.28,8.329e-05,2]
[392958000,1762178831236,517.28,8.679e-05,2]
[392958001,1762178831450,517.28,9.03e-05,2]
[392958002,1762178831615,-383.67767346,0.00013675,2]
[392958003,1762178831899,517.28,9.38e-05,2]
[392958004,1762178832172,517.28,9.73e-05,2]
[392958005,1762178832327,517.28,0.00010081,2]
[392958006,1762178832724,517.28,0.00010431,2]
[392958007,1762178832800,517.28,0.00010781,2]
[392958008,1762178832932,517.28,0.00011132,2]
[392958009,1762178833124,517.28,0.00011482,2]
[392958010,1762178833364,517.28,0.00011832,2]
[392958011,1762178833480,2454.902228,0.00015042,11]
[392958012,1762178833572,517.28,0.00012183,2]
[392958013,1762178833775,517.28,0.00012533,2]
[392958014,1762178833991,517.28,0.00012883,2]
[392958015,1762178834223,517.28,0.00013234,2]
[392958017,1762178846896,-517.28,0.00013584,2]
[392958018,1762178848505,-672.62472113,0.00013675,2]
[392958019,1762178850240,-8868.82701909,0.00013675,2]
[392958020,1762178850348,-10000.01,0.00013675,2]
[392958021,1762178850491,-682.37814898,0.00013675,2]
[392958022,1762178853891,165.83,0.00010836,2]
[392958023,1762178865487,-306.65475357,0.00013782,2]
[392958024,1762178869223,-250.4602882,0.00013782,2]
[392958025,1762178871975,-271.48907228,0.00013782,2]
[392958026,1762178879934,200.0,0.00013545,2]
[392958027,1762178886097,2145.097772,0.0001516,11]
[392958028,1762178895544,-141.36113964,0.00013782,2]
[392958029,1762178895567,-300.0,0.00013836,2]
[392958030,1762178895603,-93.88088436,0.00013889,2]
[392958031,1762178917957,500.0,0.00036805,120]
[392958032,1762178918193,500.0,0.00036805,120]
[392958033,1762178918648,500.0,0.00036805,120]
[392958034,1762178918753,500.0,0.00036805,120]
[392958035,1762178918979,500.0,0.00036805,120]
[392958036,1762178919224,500.0,0.00036805,120]
[392958037,1762178919473,500.0,0.00036805,120]
[392958038,1762178919817,500.0,0.00036805,120]
[392958039,1762178920071,500.0,0.00036805,120]
[392958040,1762178920313,500.0,0.00036805,120]
[392958041,1762178920567,500.0,0.00036805,120]
[392958042,1762178920834,500.0,0.00036805,120]
[392958043,1762178921101,500.0,0.00036805,120]
[392958044,1762178921334,500.0,0.00036805,120]
[392958045,1762178921570,500.0,0.00036805,120]
[392958046,1762178921803,500.0,0.00036805,120]
[392958047,1762178922031,500.0,0.00036805,120]
[392958048,1762178922269,500.0,0.00036805,120]
[392958049,1762178922492,500.0,0.00036805,120]
[392958050,1762178922729,500.0,0.00036805,120]
[392958051,1762178922973,500.0,0.00036805,120]
[392958052,1762178923220,500.0,0.00036805,120]
[392958053,1762178923451,307.57611664,0.00036805,120]
[392958054,1762178986204,-195.0,0.00013739,2]
[392958055,1762178989205,-177.72900927,0.00013739,2]
[392958056,1762178991236,-188.54130858,0.00013739,2]
[392958057,1762178993928,-378.60623418,0.00013739,2]
[392958058,1762178997898,-532.1485212,0.00013739,2]
[392958059,1762178999943,-166.61164153,0.00013739,2]
[392958060,1762179001395,-159.85303996,0.00013739,2]
[392958061,1762179004532,-300.0,0.00013738,2]
[392958062,1762179004557,-49.35957784,0.00013738,2]
[392958063,1762179006090,-180.45480722,0.00013738,2]
[392958064,1762179007602,-70.18561494,0.00013738,2]
[392958065,1762179007628,-90.01702093,0.00013738,2]
[392958066,1762179012565,-188.34524643,0.00013738,2]
[392958067,1762179014651,-185.56081328,0.00013738,2]
[392958086,1762179031666,-736.07691936,0.00013738,2]
[392958088,1762179031676,-353.57532177,0.00013739,2]
[392958091,1762179031688,-676.29383263,0.00013739,2]
[392958098,1762179031780,-1457.06107281,0.00013739,2]
[392958099,1762179031792,-10232.52294175,0.00013739,2]
[392958100,1762179031803,-2112.49726896,0.00013739,2]
[392958150,1762179032374,-414.43918672,0.00013739,2]
[392958151,1762179034564,-426.16223111,0.00013739,2]
[392958152,1762179036725,-300.01246968,0.00013739,2]
[392958166,1762179037612,-10907.47465345,0.00013739,2]
[392958167,1762179037622,-101.11911564,0.00013889,2]
[392958168,1762179037632,-981.2490537,0.00013944,2]
[392958169,1762179037642,-237.61850274,0.00014013,2]
[392958170,1762179037652,-237.61850274,0.00014062,2]
[392958171,1762179037662,-237.61850274,0.0001411,2]
[392958172,1762179037671,-151.0,0.00014113,2]
[392958173,1762179037680,-1200.0,0.00014116,2]
[392958174,1762179037690,-2500.0,0.00014118,2]
[392958175,1762179037700,-1000.0,0.00014118,2]
[392958176,1762179037710,-1939.5821232,0.00014132,2]
[392958177,1762179037720,-150.0,0.00014207,2]
[392958178,1762179037729,-500.0,0.00014207,2]
[392958179,1762179037738,-500.0,0.00014207,2]
[392958180,1762179037748,-500.0,0.00014207,2]
[392958181,1762179037757,-500.0,0.00014207,2]
[392958182,1762179037767,-500.0,0.00014207,2]
[392958183,1762179037777,-500.0,0.00014207,2]
[392958184,1762179037786,-591.44753654,0.00014207,2]
[392958185,1762179037795,-500.0,0.00014207,2]
[392958186,1762179037804,-500.0,0.00014207,2]
[392958187,1762179037813,-500.0,0.00014207,2]
[392958188,1762179037822,-500.0,0.00014207,2]
[392958189,1762179037831,-500.0,0.00014207,2]
[392958191,1762179037840,-500.0,0.00014207,2]
[392958192,1762179037849,-500.0,0.00014207,2]
[392958193,1762179037858,-500.0,0.00014207,2]
[392958194,1762179037868,-500.0,0.00014207,2]
[392958195,1762179037877,-500.0,0.00014207,2]
[392958196,1762179037886,-500.0,0.00014207,2]
[392958198,1762179037895,-500.0,0.00014207,2]
[392958199,1762179037904,-500.0,0.00014207,2]
[392958200,1762179037914,-500.0,0.00014207,2]
[392958201,1762179037923,-500.0,0.00014207,2]
[392958202,1762179037932,-500.0,0.00014207,2]
[392958203,1762179037941,-500.0,0.00014207,2]
[392958204,1762179037951,-500.0,0.00014207,2]
[392958205,1762179037960,-500.0,0.00014207,2]
[392958206,1762179037969,-500.0,0.00014207,2]
[392958207,1762179037978,-500.0,0.00014207,2]
[392958208,1762179037991,-500.0,0.00014207,2]
[392958209,1762179038000,-500.0,0.00014207,2]
[392958210,1762179038010,-500.0,0.00014207,2]
[392958211,1762179038019,-439.79,0.00014208,2]
[392958212,1762179038028,-14148.61,0.00014209,2]
[392958213,1762179038039,-21303.82,0.00014209,2]
[392958214,1762179038049,-9999.99,0.00014209,2]
[392958215,1762179038059,-151.0,0.00014209,2]
[392958216,1762179038069,-151.0,0.00014209,2]
[392958217,1762179038080,-151.0,0.00014209,2]
[392958218,1762179038089,-151.0,0.00014209,2]
[392958219,1762179038099,-151.0,0.00014209,2]
[392958220,1762179038109,-151.0,0.00014209,2]
[392958221,1762179038118,-151.0,0.00014209,2]
[392958222,1762179038129,-151.0,0.00014209,2]
[392958223,1762179038139,-151.0,0.00014209,2]
[392958224,1762179038149,-151.0,0.00014209,2]
[392958225,1762179038159,-151.0,0.00014209,2]
[392958226,1762179038169,-151.0,0.00014209,2]
[392958227,1762179038178,-151.0,0.00014209,2]
[392958228,1762179038188,-151.0,0.00014209,2]
[392958229,1762179038198,-151.0,0.00014209,2]
[392958230,1762179038208,-151.0,0.00014209,2]
[392958231,1762179038218,-151.0,0.00014209,2]
[392958232,1762179038227,-151.0,0.00014209,2]
[392958233,1762179038239,-151.0,0.00014209,2]
[392958234,1762179038249,-151.0,0.00014209,2]
[392958235,1762179038259,-151.0,0.00014209,2]
[392958236,1762179038270,-151.0,0.00014209,2]
[392958237,1762179038280,-151.0,0.00014209,2]
[392958238,1762179038289,-151.0,0.00014209,2]
[392958239,1762179038299,-151.0,0.00014209,2]
[392958240,1762179038308,-179.45569983,0.00014209,2]
[392958241,1762179038318,-151.0,0.00014209,2]
[392958242,1762179038328,-151.0,0.00014209,2]
[392958243,1762179038338,-151.0,0.00014209,2]
[392958244,1762179038348,-151.0,0.00014209,2]
[392958245,1762179038357,-154.36347057,0.00014209,2]
[392958246,1762179038367,-2434.0776618,0.00014214,2]
[392958247,1762179038380,-389.63474102,0.00014217,2]
[392958248,1762179038393,-156.69423943,0.00014217,2]
[392958249,1762179038404,-479.01405275,0.00014217,2]
[392958250,1762179038414,-146074.65782957,0.00014218,2]
[392958251,1762179038430,-52634.95089783,0.00014218,2]
[392958252,1762179038439,-200.0,0.00014231,2]
[392958253,1762179038449,-900.0,0.000144,2]
[392958254,1762179038458,-157.32697603,0.000144,2]
[392958255,1762179038471,-2635.22,0.00014401,2]
[392958256,1762179038481,-439.79,0.00014482,2]
[392958257,1762179038491,-520.49604148,0.00014486,2]
[392958258,1762179038502,-500.0,0.00014498,2]
[392958259,1762179038511,-500.0,0.00014499,2]
[392958260,1762179038521,-500.0,0.00014499,2]
[392958261,1762179038531,-500.0,0.00014499,2]
[392958262,1762179038541,-515.88624332,0.00014499,2]
[392958263,1762179038551,-21099.20549654,0.000145,2]
[392958264,1762179038560,-2334.22,0.000145,2]
[392958265,1762179038571,-265.0273,0.000145,2]
[392958266,1762179038581,-166.66,0.00014522,2]
[392958267,1762179038591,-439.79,0.00014756,2]
[392958268,1762179038602,-265.02731,0.0001478,2]
[392958269,1762179038611,-151.0,0.000148,2]
[392958270,1762179038621,-1632.62286675,0.00014942,2]
[392958271,1762179038632,-156.39202044,0.00014942,2]
[392958272,1762179038642,-308.14,0.00014973,2]
[392958273,1762179038653,-150.0,0.00014973,2]
[392958274,1762179038664,-160.0,0.00015,2]
[392958275,1762179038674,-166.66,0.00015001,2]
[392958276,1762179038916,-1000.0,0.00015014,2]
[392958277,1762179038928,-420000.0,0.00015015,2]
[392958278,1762179038938,-439.79,0.0001503,2]
[392958279,1762179038948,-195.0,0.00015042,2]
[392958280,1762179038958,-193.0,0.00015042,2]
[392958281,1762179038967,-300.0,0.00015042,2]
[392958282,1762179038976,-283.5154461,0.00015042,2]
[392958283,1762179038987,-300.0,0.00015042,2]
[392958284,1762179038997,-2500.0,0.00015042,2]
[392958285,1762179039007,-316.0,0.00015055,2]
[392958286,1762179039017,-500.0,0.00015073,2]
[392958287,1762179039028,-648.69000098,0.00015073,2]
[392958288,1762179039038,-500.0,0.00015073,2]
[392958289,1762179039048,-619.433582,0.00015073,2]
[392958290,1762179039059,-500.0,0.00015073,2]
[392958291,1762179039069,-500.0,0.00015073,2]
[392958292,1762179039079,-500.0,0.00015073,2]
[392958293,1762179039089,-504.98640872,0.00015073,2]
[392958294,1762179039099,-500.0,0.00015073,2]
[392958295,1762179039108,-308.14,0.0001511,2]
[392958296,1762179039118,-2551.10583925,0.00015112,2]
[392958297,1762179039127,-250.0,0.00015112,2]
[392958298,1762179039137,-195.0,0.00015112,2]
[392958299,1762179039147,-1680.0,0.00015112,2]
[392958300,1762179039158,-6060.32358303,0.00015124,2]
[392958301,1762179039167,-2510.55357343,0.0001516,11]
[392958302,1762179039176,-300.0,0.0001516,2]
[392958303,1762179039186,-300.0,0.0001516,2]
[392958304,1762179039195,-308.16,0.00015247,2]
[392958305,1762179039205,-250.0,0.00015278,2]
[392958306,1762179039215,-195.0,0.00015278,2]
[392958307,1762179039226,-265.0273,0.0001528,2]
[392958308,1762179039236,-477.5520043,0.00015297,2]
[392958309,1762179039246,-439.80476803,0.00015304,2]
[392958310,1762179039256,-255.0,0.0001533,2]
[392958311,1762179039265,-166.66,0.00015481,2]
[392958312,1762179039275,-1000.0,0.000155,2]
[392958313,1762179039284,-250.0,0.00015514,2]
[392958314,1762179039293,-195.0,0.00015514,2]
[392958315,1762179039303,-4976.68643817,0.00015539,2]
[392958316,1762179039312,-430.20618159,0.00015539,2]
[392958317,1762179039323,-298.80797233,0.00015539,2]
[392958318,1762179039332,-300.77396753,0.00015539,2]
[392958319,1762179039342,-411.97479195,0.00015539,2]
[392958320,1762179039352,-195.0,0.00015539,2]
[392958321,1762179039361,-180.27972521,0.00015539,2]
[392958322,1762179039370,-193.3250575,0.00015539,2]
[392958323,1762179039379,-319.40133199,0.00015539,2]
[392958324,1762179039388,-300.0,0.00015539,2]
[392958325,1762179039398,-247.09124972,0.00015539,2]
[392958326,1762179039407,-383.67767346,0.00015539,2]
[392958327,1762179039417,-672.62472113,0.00015539,2]
[392958328,1762179039430,-306.65475357,0.00015539,2]
[392958329,1762179039439,-250.4602882,0.00015539,2]
[392958330,1762179039448,-271.48907228,0.00015539,2]
[392958331,1762179039469,-535.242024,0.00015539,2]
[392958332,1762179039481,-195.0,0.00015539,2]
[392958333,1762179039491,-177.72900927,0.00015539,2]
[392958334,1762179039502,-188.54130858,0.00015539,2]
[392958335,1762179039511,-378.60623418,0.00015539,2]
[392958337,1762179039521,-532.1485212,0.00015539,2]
[392958339,1762179039531,-166.61164153,0.00015539,2]
[392958340,1762179039541,-159.85303996,0.00015539,2]
[392958341,1762179039551,-349.35957784,0.00015539,2]
[392958342,1762179039560,-180.45480722,0.00015539,2]
[392958343,1762179039570,-160.20263587,0.00015539,2]
[392958344,1762179039579,-188.34524643,0.00015539,2]
[392958345,1762179039589,-503.0663356,0.00015621,2]
[392958346,1762179039599,-1000.0,0.00015621,2]
[392958347,1762179039609,-500.0,0.00015621,2]
[392958348,1762179039618,-500.0,0.00015621,2]
[392958349,1762179039627,-562.37,0.00015736,2]
[392958350,1762179039637,-265.02731,0.0001579,2]
[392958351,1762179039647,-6399.0447091,0.00015871,2]
[392958352,1762179039656,-1939.58212311,0.00015884,2]
[392958353,1762179039666,-6243.96,0.00015892,2]
[392958354,1762179039676,-166.66,0.0001596,2]
[392958355,1762179039686,-999.0,0.00015979,3]
[392958356,1762179039697,-9344.93,0.00015979,2]
[392958357,1762179039706,-150.0,0.00016003,2]
[392958358,1762179039716,-9946.74,0.0001605,2]
[392958359,1762179039726,-248.71531821,0.00016061,2]
[392958360,1762179039737,-1852.42,0.00016085,2]
[392958361,1762179039746,-500.0,0.00016112,2]
[392958362,1762179039756,-3462.75,0.00016117,2]
[392958363,1762179039765,-819.0,0.00016122,2]
[392958364,1762179039775,-2140.0,0.00016122,2]
[392958365,1762179039784,-500.0,0.00016147,2]
[392958366,1762179039794,-1500.0,0.00016168,2]
[392958367,1762179039803,-573.0,0.00016212,2]
[392958368,1762179039813,-500.0,0.00016212,2]
[392958369,1762179039823,-250.0,0.00016239,2]
[392958370,1762179039832,-165.83,0.00016253,2]
[392958371,1762179039841,-587.2229139,0.00016264,2]
[392958372,1762179039851,-265.02731,0.0001628,2]
[392958373,1762179039861,-1427.8198707,0.00016347,2]
[392958374,1762179039870,-500.0,0.00016438,2]
[392958375,1762179039879,-500.0,0.00016438,2]
[392958376,1762179039889,-500.0,0.00016438,2]
[392958377,1762179039899,-552.22068835,0.00016438,2]
[392958378,1762179039909,-2686.11,0.00016438,2]
[392958379,1762179039918,-500.0,0.00016438,2]
[392958380,1762179039927,-166.66,0.0001644,2]
[392958381,1762179039937,-1026.3574146,0.00016448,2]
[392958382,1762179039946,-268.0,0.00016494,2]
[392958383,1762179039955,-1000.0,0.000165,2]
[392958384,1762179039965,-268.0,0.00016503,2]
[392958385,1762179039974,-433.0,0.00016537,2]
[392958386,1762179039983,-1632.62286669,0.00016604,2]
[392958387,1762179039992,-2351.0,0.00016623,2]
[392958388,1762179040002,-168.0,0.00016685,2]
[392958389,1762179040010,-168.0,0.00016685,2]
[392958390,1762179040019,-629.63713841,0.00016716,2]
[392958391,1762179040029,-268.0,0.00016735,2]
[392958392,1762179040037,-168.0,0.00016748,2]
[392958393,1762179040047,-374.93465113,0.00016777,2]
[392958394,1762179040056,-265.0273,0.0001678,2]
[392958395,1762179040066,-1905.97,0.00016863,2]
[392958396,1762179040076,-268.0,0.00016876,2]
[392958397,1762179040085,-268.0,0.000169,2]
[392958398,1762179040095,-166.66,0.00016919,2]
[392958399,1762179040104,-229.0112942,0.00016976,2]
[392958400,1762179040113,-168.0,0.00016986,2]
[392958401,1762179040123,-5952.69,0.00016986,2]
[392958402,1762179040132,-250.0,0.00017,2]
[392958403,1762179040141,-268.0,0.00017121,2]
[392958404,1762179040150,-268.0,0.00017137,2]
[392958405,1762179040159,-44338.1068183,0.00017245,2]
[392958406,1762179040168,-257.91778498,0.0001743,2]
[392958407,1762179040177,-268.0,0.00017463,2]
[392958408,1762179040186,-268.0,0.00017491,2]
[392958409,1762179040195,-2500.0,0.000175,2]
[392958410,1762179040204,-1000.0,0.000175,2]
[392958411,1762179040213,-268.0,0.000175,2]
[392958412,1762179040222,-337.91944318,0.00017534,2]